bitfinex-derivatives/quotes_ETHF0:USTF0_20241027
["timestamp","ask_amount","ask_price","bid_price","bid_amount"]
[1730069918690,1.54423647,2516.7,2516.3,5.65863647]
[1730069918691,1.14643647,2516.7,2516.3,4.5122]
[1730069918891,1.14643647,2516.5,2516.4,0.39785]
[1730069919684,2.02443647,2516.6,2516.3,5.65863647]
[1730069919890,2.02443647,2516.6,2516.5,0.39783]
[1730069920285,2.02443647,2516.6,2516.3,3.2078]
[1730069920492,2.02443647,2516.6,2516.3,3.60565]
[1730069920493,1.54428647,2516.4,2516.3,3.60565]
[1730069924095,1.54428647,2516.4,2516.3,0.39785]
[1730069928998,0.878,2516.6,2516.2,3.614]
[1730069929300,1.27582,2516.6,2516.5,0.39783]
[1730069930900,2.42225647,2516.6,2516.5,0.39783]
[1730069933201,0.39785,2516.5,2516.4,0.39784]
[1730069933405,1.54428647,2516.5,2516.4,0.39784]
[1730069934403,0.39786,2516.4,2516.3,0.39785]
[1730069934596,1.54429647,2516.4,2516.3,0.39785]
[1730069935803,0.39786,2516.3,2516.2,0.80408]
[1730069935998,1.95269647,2516.3,2516.2,0.80408]
[1730069936399,1.95269647,2516.3,2516.2,0.4062]
[1730069936900,1.55483647,2516.3,2516.1,1.28518]
[1730069937208,1.14643647,2516.2,2516.0,0.4307]
[1730069937401,2.42232647,2516.1,2516.0,0.4307]
[1730069937598,0.39791,2516.0,2515.9,0.39791]
[1730069937799,1.54434647,2516.0,2515.9,0.84431]
[1730069941805,1.14643647,2516.0,2515.9,0.4464]
[1730069942004,2.02443647,2516.0,2515.9,0.84432]
[1730069942210,0.878,2516.3,2516.2,0.39786]
[1730069942412,1.14643647,2516.3,2516.2,1.54431647]
[1730069942710,1.14643647,2516.3,2516.2,0.39788]
[1730069942909,1.14643647,2516.3,2516.2,0.80838]
[1730069950914,1.54429647,2516.3,2516.2,0.80838]
[1730069951109,1.14643647,2516.3,2516.2,0.80838]
[1730069951618,1.54429647,2516.3,2516.2,0.80838]
[1730069952611,1.14643647,2516.3,2516.2,0.80838]
[1730069953112,0.39788,2516.2,2516.1,3.2078]
[1730069953314,1.54431647,2516.2,2516.1,3.2078]
[1730069953516,1.14643647,2516.2,2516.1,3.2078]
[1730069953716,1.10371647,2516.2,2516.1,3.2078]
[1730069954111,0.60371647,2516.2,2516.1,3.2078]
[1730069954312,0.60371647,2516.2,2516.1,3.60569]
[1730069954518,1.14643647,2516.2,2516.1,3.60569]
[1730069955311,0.4124,2516.3,2516.2,0.39788]
[1730069955312,1.14643647,2516.3,2516.2,0.39788]
[1730069955513,1.14643647,2516.3,2516.2,0.83048]
[1730069955710,2.01243647,2516.5,2516.2,2.39751647]
[1730069955912,2.01243647,2516.5,2516.4,0.39785]
[1730069955913,2.41027647,2516.5,2516.4,0.39785]
[1730069958614,2.01243647,2516.5,2516.4,0.39785]
[1730069958919,0.39786,2516.3,2516.2,0.81847]
[1730069959116,1.54429647,2516.3,2516.2,0.81847]
[1730069964531,0.866,2516.5,2516.2,0.4206]
[1730069964734,0.39785,2516.4,2516.3,0.39785]
[1730069964930,1.54428647,2516.4,2516.3,0.39785]
[1730069968048,0.39788,2516.3,2516.2,0.39787]
[1730069968229,1.97111647,2516.3,2516.2,0.39787]
[1730069969740,0.39784,2516.5,2516.4,0.39783]
[1730069969934,2.01243647,2516.5,2516.4,0.39783]
[1730069970137,2.41026647,2516.5,2516.4,0.39783]
[1730069972336,1.54426647,2516.5,2516.4,0.39783]
[1730069972542,2.41026647,2516.5,2516.4,0.39783]
[1730069973443,0.39787,2516.3,2516.2,0.39786]
[1730069973635,1.14643647,2516.4,2516.0,0.892]
[1730069973836,1.14643647,2516.1,2516.0,1.28991]
[1730069974042,1.54432647,2516.1,2516.0,1.28991]
[1730069974744,1.14643647,2516.1,2516.0,1.28991]
[1730069975049,1.54432647,2516.1,2516.0,1.28991]
[1730069976248,1.54432647,2516.1,2515.9,3.2078]
[1730069976249,0.39792,2516.0,2515.9,0.39791]
[1730069976443,2.40535647,2516.0,2515.9,0.39791]
[1730069981650,0.861,2516.0,2515.9,0.39791]
[1730069981850,1.25891,2516.0,2515.9,0.39791]
[1730069982748,2.40534647,2516.0,2515.9,0.39791]
[1730069982953,1.54434647,2516.0,2515.9,0.39791]
[1730069983149,2.40534647,2516.0,2515.9,0.39791]
[1730069985354,1.14643647,2516.1,2515.9,1.14643647]
[1730069985653,0.861,2516.1,2516.0,0.39791]
[1730069986254,1.25889,2516.1,2516.0,0.39791]
[1730069986455,2.40532647,2516.1,2516.0,0.39791]
[1730069987753,0.39792,2516.0,2515.9,0.39791]
[1730069988053,1.54435647,2516.0,2515.9,0.39791]
[1730069988251,1.98585647,2516.0,2515.9,0.39791]
[1730069988553,2.39625647,2516.0,2515.9,0.39791]
[1730069991952,2.39625647,2516.0,2515.9,3.60571]
[1730069992353,2.39625647,2516.0,2515.9,0.39791]
[1730069992657,2.39625647,2516.0,2515.9,3.60571]
[1730069992856,1.99833647,2516.0,2515.9,3.60571]
[1730069993651,0.4104,2516.0,2515.9,4.75214647]
[1730069993855,0.861,2516.1,2516.0,0.39791]
[1730069994254,2.40532647,2516.1,2516.0,0.39791]
[1730070000561,2.00743647,2516.1,2516.0,0.39791]
[1730070000758,1.54432647,2516.2,2516.1,0.39789]
[1730070000956,0.39787,2516.3,2516.2,0.39788]
[1730070001156,0.861,2516.3,2516.2,2.01573647]
[1730070001360,3.60563,2516.5,2516.4,0.39785]
[1730070001562,3.60559,2516.8,2516.4,2.14103647]
[1730070001764,0.4231,2517.0,2516.7,1.14643647]
[1730070001961,0.861,2516.9,2516.8,2.39481647]
[1730070002362,1.14643647,2516.9,2516.8,2.39481647]
[1730070002554,0.39772,2517.2,2516.8,5.97063647]
[1730070002765,3.2078,2517.3,2517.0,0.39775]
[1730070002766,2.00743647,2517.1,2517.0,0.39775]
[1730070003765,0.39781,2516.6,2516.2,1.0404933]
[1730070003962,1.54424647,2516.6,2516.5,0.83612]
[1730070004170,2.40524647,2516.6,2516.5,0.83612]
[1730070004754,0.861,2516.6,2516.5,0.83612]
[1730070004959,0.861,2516.6,2516.5,1.58473647]
[1730070005172,1.14643647,2516.8,2516.5,1.58473647]
[1730070005358,2.00743647,2516.8,2516.5,1.58473647]
[1730070005555,2.40522647,2516.8,2516.7,0.3978]
[1730070006477,2.00743647,2516.8,2516.5,1.58473647]
[1730070006765,0.3978,2516.7,2516.6,0.3978]
[1730070007369,2.40522647,2516.8,2516.7,0.3978]
[1730070008459,1.54421647,2516.8,2516.7,0.3978]
[1730070009065,1.14643647,2516.8,2516.7,0.3978]
[1730070009259,1.54421647,2516.8,2516.7,0.3978]
[1730070009973,0.39778,2516.8,2516.7,0.3978]
[1730070010768,1.54421647,2516.8,2516.7,0.3978]
[1730070014169,0.39778,2516.8,2516.7,0.3978]
[1730070014364,1.54421647,2516.9,2516.8,0.39778]
[1730070014965,0.861,2517.0,2516.6,4.35423647]
[1730070015164,2.40519647,2517.0,2516.9,0.39777]
[1730070015474,1.54419647,2517.0,2516.9,0.39777]
[1730070015669,0.39774,2517.1,2517.0,0.39775]
[1730070015973,3.2078,2517.5,2517.0,5.54103647]
[1730070016170,0.3977,2517.4,2517.3,1.54412647]
[1730070016378,1.54413647,2517.4,2517.3,1.54412647]
[1730070016872,1.54413647,2517.4,2517.3,0.39769]
[1730070017265,0.3977,2517.4,2517.3,0.39769]
[1730070018065,5.61291647,2517.5,2517.4,0.39769]
[1730070018260,2.40511647,2517.5,2517.4,0.39769]
[1730070018465,1.14643647,2517.6,2517.4,1.14643647]
[1730070018672,1.14643647,2517.6,2517.5,0.4228]
[1730070018673,1.54410647,2517.6,2517.5,0.4228]
[1730070019075,1.54410647,2517.6,2517.5,0.82047]
[1730070019076,0.39766,2517.6,2517.5,0.82047]
[1730070019373,1.54409647,2517.6,2517.5,0.82047]
[1730070023571,1.54409647,2517.6,2517.5,0.4228]
[1730070026480,1.54409647,2517.6,2517.5,0.82047]
[1730070026776,1.54409647,2517.6,2517.5,0.4228]
[1730070028977,1.54409647,2517.6,2517.5,0.82047]
[1730070029181,1.54409647,2517.6,2517.5,0.4228]
[1730070030179,1.54409647,2517.6,2517.5,1.56923647]
[1730070030379,1.54409647,2517.6,2517.5,1.96690647]
[1730070034385,1.14643647,2517.6,2517.5,1.96690647]
[1730070035075,1.54409647,2517.6,2517.5,1.96690647]
[1730070035879,1.14643647,2517.6,2517.5,1.96690647]
[1730070036183,0.86,2517.7,2517.6,0.39766]
[1730070036381,0.39763,2517.8,2517.7,0.39764]
[1730070036581,3.2078,2518.3,2517.8,0.99407]
[1730070036771,3.2078,2518.3,2517.7,5.11843647]
[1730070036772,3.60534,2518.3,2518.2,0.39756]
[1730070036976,3.60534,2518.3,2517.9,5.02443]
[1730070036977,0.39759,2518.1,2518.0,0.39758]
[1730070037176,0.39759,2518.0,2517.9,4.428]
[1730070037382,3.2078,2519.3,2517.9,10.29447294]
[1730070037583,3.2078,2519.3,2519.1,1.14643647]
[1730070037584,1.14643647,2519.3,2519.1,1.14643647]
[1730070037881,1.54382647,2519.3,2519.0,1.14643647]
[1730070038083,1.14643647,2519.2,2518.9,1.55813647]
[1730070038281,1.54384647,2519.2,2519.0,0.39743]
[1730070038470,0.8302,2519.3,2519.0,0.39743]
[1730070039278,0.4328,2519.3,2519.0,0.39743]
[1730070039691,0.83019,2519.3,2519.0,0.39743]
[1730070040272,0.4328,2519.3,2518.9,0.4117]
[1730070040482,0.4328,2519.3,2519.0,0.39742]
[1730070040685,0.4328,2519.3,2518.9,0.4117]
[1730070040981,0.4328,2519.3,2519.2,0.3974]
[1730070041183,0.4328,2519.3,2519.1,0.3974]
[1730070041482,0.4328,2519.3,2519.2,0.3974]
[1730070041697,0.4328,2519.3,2518.9,0.4117]
[1730070041882,0.4328,2519.3,2519.1,0.39741]
[1730070042479,0.83019,2519.3,2519.1,0.39741]
[1730070043284,0.4328,2519.3,2519.0,0.39743]
[1730070043586,0.83019,2519.3,2519.0,0.39743]
[1730070043790,0.83019,2519.3,2518.9,0.4117]
[1730070043990,0.83019,2519.3,2519.1,0.39742]
[1730070048394,0.83019,2519.3,2519.0,0.39743]
[1730070048686,0.83019,2519.3,2518.9,3.6195]
[1730070048687,0.83019,2519.3,2519.1,0.3974]
[1730070049292,0.23358332,2519.3,2518.9,3.6195]
[1730070049597,0.23358332,2519.3,2519.2,0.3974]
[1730070050583,0.23358332,2519.3,2519.1,0.39741]
[1730070050985,0.23358332,2519.3,2519.2,0.3974]
[1730070055687,0.39739,2519.3,2519.2,0.3974]
[1730070057499,0.39742,2519.2,2519.1,0.39742]
[1730070057696,0.3974,2519.3,2519.2,0.3974]
[1730070057893,3.6482,2519.5,2519.0,2.48199381]
[1730070058090,3.6482,2519.5,2519.4,0.39737]
[1730070059100,3.2078,2519.8,2519.2,2.48199381]
[1730070059399,3.2078,2519.8,2519.3,1.40618]
[1730070059589,0.39733,2519.7,2519.6,0.39733]
[1730070060405,4.0668,2519.8,2519.4,0.4438]
[1730070060703,4.0668,2519.8,2519.7,0.39732]
[1730070061301,4.46411,2519.8,2519.7,0.39732]
[1730070062204,3.2078,2519.8,2519.7,0.39732]
[1730070062396,3.60511,2519.8,2519.7,0.39732]
[1730070062704,0.39732,2519.7,2519.6,0.39733]
[1730070063609,0.39732,2519.7,2519.4,0.4438]
[1730070063610,0.39736,2519.5,2519.4,0.4438]
[1730070063801,0.39736,2519.5,2519.4,0.84117]
[1730070064103,0.39736,2519.5,2519.4,0.4438]
[1730070064898,0.39736,2519.5,2519.4,0.84117]
[1730070065305,0.39736,2519.5,2519.4,0.4438]
[1730070065704,0.39736,2519.5,2519.4,0.84117]
[1730070066709,0.426,2519.7,2519.5,0.39735]
[1730070066710,0.39735,2519.6,2519.5,0.39735]
[1730070066902,3.2078,2519.8,2519.5,0.9934]
[1730070067102,3.2078,2519.8,2519.7,0.39732]
[1730070068206,3.2078,2519.8,2519.6,0.39733]
[1730070068207,0.39734,2519.7,2519.6,0.39733]
[1730070068407,3.60512,2519.8,2519.7,0.39732]
[1730070068812,0.39734,2519.7,2519.6,0.39733]
[1730070069512,0.39735,2519.6,2519.5,0.39735]
[1730070069713,3.2078,2519.8,2519.4,0.4438]
[1730070069897,3.6433,2519.8,2519.5,2.48199381]
[1730070070101,3.60512,2519.8,2519.7,0.39732]
[1730070071205,3.60512,2519.8,2519.6,0.39733]
[1730070071206,0.39733,2519.7,2519.6,0.39733]
[1730070072414,4.0798,2520.1,2519.6,4.96216]
[1730070072613,4.47707,2520.1,2520.0,0.39728]
[1730070072814,3.60507,2520.1,2520.0,0.39728]
[1730070073110,0.39729,2520.0,2519.9,0.39728]
[1730070073307,3.2078,2520.1,2520.0,0.39728]
[1730070073607,3.60506,2520.1,2520.0,0.39728]
[1730070074012,3.2078,2520.1,2519.9,0.4233]
[1730070074219,3.2078,2520.1,2519.7,3.2078]
[1730070074509,0.39734,2519.6,2519.5,0.4233]
[1730070074709,0.39734,2519.6,2519.2,0.4376]
[1730070074710,0.39739,2519.3,2519.2,0.4376]
[1730070075410,0.39739,2519.3,2519.2,0.835]
[1730070075611,0.39739,2519.3,2519.2,0.4376]
[1730070075911,1.39091,2519.2,2518.8,0.39745]
[1730070076211,1.39091,2519.2,2518.8,0.82605]
[1730070076212,0.39745,2518.9,2518.8,0.82605]
[1730070076508,0.39744,2519.0,2518.9,0.39744]
[1730070078307,1.2801,2519.2,2518.8,0.4286]
[1730070078514,0.39745,2519.0,2518.9,0.39745]
[1730070079310,0.39745,2519.0,2518.8,0.4286]
[1730070079311,1.2801,2519.2,2518.8,0.4286]
[1730070079509,1.2801,2519.2,2518.8,0.82606]
[1730070079510,0.39745,2518.9,2518.8,0.82606]
[1730070079706,0.39745,2518.9,2518.8,0.4286]
[1730070079912,0.39745,2518.9,2518.8,0.82607]
[1730070081414,0.39745,2518.9,2518.8,0.4286]
[1730070083411,0.39745,2518.9,2518.8,0.82607]
[1730070083613,0.39745,2518.9,2518.8,0.4286]
[1730070084017,1.26945,2518.9,2518.8,0.4286]
[1730070084422,3.2078,2519.3,2518.8,4.399]
[1730070084711,0.872,2519.1,2519.0,0.39743]
[1730070085819,3.2078,2519.3,2519.2,0.3974]
[1730070086021,1.26938,2519.4,2519.3,0.39739]
[1730070086517,3.2078,2519.6,2519.2,2.48199381]
[1730070086712,3.2078,2519.6,2519.5,0.39736]
[1730070086909,3.2078,2520.0,2519.4,2.48199381]
[1730070087217,3.2078,2520.0,2519.8,0.3973]
[1730070087218,1.2693,2519.9,2519.8,0.3973]
[1730070088218,3.2078,2520.0,2519.6,2.48199381]
[1730070088513,4.0798,2520.0,2519.8,0.39729]
[1730070088719,4.47708,2520.0,2519.9,0.4428]
[1730070089020,4.0798,2520.0,2519.4,3.47542381]
[1730070089223,0.3973,2519.9,2519.8,0.39731]
[1730070089715,4.0798,2520.0,2519.5,0.4428]
[1730070089914,3.2078,2520.0,2519.5,0.4428]
[1730070090118,4.0798,2520.0,2519.5,0.4428]
[1730070090625,4.0798,2520.0,2519.5,0.84014]
[1730070090626,0.39734,2519.7,2519.5,0.84014]
[1730070090923,0.39734,2519.7,2519.6,0.39734]
[1730070093418,4.4926,2520.0,2519.5,0.4428]
[1730070093622,4.4926,2520.0,2519.8,0.3973]
[1730070093623,1.2693,2519.9,2519.8,0.3973]
[1730070093927,0.872,2519.9,2519.8,0.3973]
[1730070094112,3.96828613,2520.9,2519.8,3.9688]
[1730070094313,3.96828613,2520.9,2520.8,0.39715]
[1730070094519,0.76048613,2520.9,2520.8,0.39715]
[1730070095324,10.47887412,2521.3,2520.9,0.39712]
[1730070095529,10.47887412,2521.3,2520.7,0.8308]
[1730070095828,0.39713,2521.0,2520.8,0.39715]
[1730070096219,10.47887412,2521.3,2520.7,0.8308]
[1730070096220,9.53687412,2521.3,2520.7,0.8308]
[1730070096423,0.39714,2520.9,2520.7,0.8308]
[1730070096623,0.39713,2521.0,2520.7,0.8308]
[1730070096824,0.942,2521.2,2520.7,0.8308]
[1730070097025,0.39714,2520.9,2520.7,0.8308]
[1730070097327,0.39715,2520.8,2520.7,0.8308]
[1730070097517,0.942,2521.2,2520.7,0.8308]
[1730070097717,0.39715,2520.9,2520.7,0.8308]
[1730070097917,0.942,2521.2,2520.7,0.8308]
[1730070098129,0.39714,2520.9,2520.7,0.8308]
[1730070098524,1.93474,2521.2,2520.7,0.8308]
[1730070098720,0.39715,2520.9,2520.7,0.8308]
[1730070098923,1.93474,2521.2,2520.7,0.8308]
[1730070099227,0.39715,2520.8,2520.7,0.8308]
[1730070102523,0.39715,2520.8,2520.7,4.798]
[1730070104730,0.39715,2520.8,2520.7,0.8308]
[1730070104931,0.39715,2520.8,2520.7,4.798]
[1730070106321,0.39715,2520.8,2520.7,0.8308]
[1730070106834,0.39715,2520.8,2520.7,4.798]
[1730070107125,0.39715,2520.8,2520.7,0.8308]
[1730070109733,0.39715,2520.8,2520.7,1.22797]
[1730070110136,0.39715,2520.8,2520.7,0.8308]
[1730070110635,0.39715,2520.8,2520.7,1.22797]
[1730070110834,0.39715,2520.8,2520.7,0.8308]
[1730070112431,0.39715,2520.8,2520.7,1.22797]
[1730070112635,4.20058,2521.1,2520.8,0.39715]
[1730070112636,0.39714,2520.9,2520.8,0.39715]
[1730070112839,0.39715,2520.8,2520.7,1.22795]
[1730070113031,4.20058,2521.1,2520.7,1.22795]
[1730070113032,0.39712,2521.0,2520.7,1.22795]
[1730070113238,0.39715,2520.8,2520.7,1.22795]
[1730070114925,0.39715,2520.8,2520.7,0.8308]
[1730070115131,0.39715,2520.8,2520.7,1.22797]
[1730070115744,0.39715,2520.8,2520.7,0.8308]
[1730070116037,0.39715,2520.8,2520.7,1.22797]
[1730070119040,0.39715,2520.8,2520.7,0.8308]
[1730070119445,0.39715,2520.8,2520.7,1.22797]
[1730070120733,3.60492,2521.1,2521.0,0.39712]
[1730070120938,3.2078,2521.1,2521.0,0.39712]
[1730070121344,3.6049,2521.1,2521.0,0.39712]
[1730070121849,0.39712,2521.0,2520.9,0.39712]
[1730070122649,0.39713,2520.9,2520.8,3.60494]
[1730070123050,0.39713,2521.0,2520.9,0.39712]
[1730070123744,5.58276,2521.4,2520.8,3.2078]
[1730070123944,0.3971,2521.2,2521.1,0.39708]
[1730070124136,0.39712,2521.0,2520.9,2.87910381]
[1730070124546,0.39711,2521.1,2521.0,0.39711]
[1730070126044,0.39712,2521.0,2520.9,2.48199381]
[1730070126342,0.39712,2521.0,2520.9,2.87912381]
[1730070127049,0.39712,2521.1,2521.0,0.3971]
[1730070130549,0.3971,2521.2,2521.1,0.39709]
[1730070131352,0.4403,2521.4,2520.9,3.47481381]
[1730070131547,0.3971,2521.2,2521.1,0.39709]
[1730070131851,0.39713,2521.0,2520.9,0.39712]
[1730070132052,0.39713,2521.0,2520.8,3.2078]
[1730070132053,0.39712,2521.1,2521.0,0.39711]
[1730070138563,0.39708,2521.3,2521.2,0.39707]
[1730070138756,0.3971,2521.2,2521.1,0.39709]
[1730070139157,0.39708,2521.3,2521.2,0.39708]
[1730070139756,3.2078,2522.0,2521.3,0.39707]
[1730070139956,3.2078,2522.6,2521.8,2.48199381]
[1730070140156,0.39693,2522.2,2522.1,0.39694]
[1730070140351,0.39692,2522.3,2522.2,0.39693]
[1730070140557,1.2708,2522.5,2522.0,2.48199381]
[1730070140757,1.2708,2522.5,2522.2,0.39692]
[1730070140758,0.39692,2522.3,2522.2,0.39692]
[1730070141059,0.39692,2522.3,2522.2,0.39693]
[1730070141261,0.8284,2522.5,2522.2,0.39693]
[1730070141262,0.3969,2522.4,2522.3,0.39691]
[1730070141563,0.8284,2522.5,2522.3,0.39691]
[1730070141564,0.39689,2522.5,2522.3,0.39691]
[1730070141764,3.2078,2522.6,2522.3,0.39691]
[1730070141765,0.3969,2522.4,2522.3,0.39691]
[1730070142269,0.3969,2522.4,2522.2,2.87891381]
[1730070142458,0.39691,2522.3,2522.2,2.48199381]
[1730070143055,3.9648,2522.3,2521.9,4.0439]
[1730070143257,0.39696,2522.0,2521.9,3.2078]
[1730070143464,0.39698,2521.9,2521.7,0.397]
[1730070144060,0.39698,2521.9,2521.6,0.8589]
[1730070144261,0.39698,2521.9,2521.7,0.39699]
[1730070144463,0.39698,2521.9,2521.7,0.39701]
[1730070144663,0.8557,2522.2,2521.8,0.39699]
[1730070144865,0.39698,2521.9,2521.7,2.48199381]
[1730070145160,0.39698,2521.9,2521.8,0.39699]
[1730070145359,0.39698,2521.9,2521.7,2.87899381]
[1730070145561,0.39698,2521.9,2521.8,0.39699]
[1730070146272,5.62881,2522.3,2522.0,0.39696]
[1730070146273,0.39695,2522.1,2522.0,0.39696]
[1730070146464,4.1938,2522.3,2522.0,0.39696]
[1730070146661,0.39693,2522.2,2522.1,0.4319]
[1730070150270,0.39692,2522.3,2522.2,0.39692]
[1730070150473,0.39692,2522.3,2522.1,3.31082381]
[1730070150670,1.4221,2522.5,2522.1,3.31082381]
[1730070150971,0.39692,2522.3,2522.1,3.31082381]
[1730070151176,3.2078,2522.8,2522.1,2.91389381]
[1730070151476,0.39685,2522.7,2522.6,0.39686]
[1730070151779,0.39685,2522.7,2522.5,0.4459]
[1730070152074,0.39685,2522.7,2522.6,0.4227]
[1730070152275,0.39683,2522.9,2522.6,2.90469381]
[1730070152573,4.19978,2523.1,2522.6,3.30154381]
[1730070152772,0.39684,2522.8,2522.6,3.30154381]
[1730070153276,0.39684,2522.8,2522.7,0.39685]
[1730070154079,3.24161538,2523.5,2522.7,0.39685]
[1730070154080,0.39672,2523.6,2523.4,0.39673]
[1730070154283,3.638,2524.3,2523.5,2.90929381]
[1730070154472,3.638,2524.3,2524.0,0.39664]
[1730070154473,0.39661,2524.3,2524.0,0.39664]
[1730070154979,3.2078,2524.4,2524.0,0.39664]
[1730070155176,0.83318,2524.5,2524.1,2.87862381]
[1730070155383,0.39658,2524.5,2524.2,0.39661]
[1730070155678,0.39659,2524.4,2524.1,2.87861381]
[1730070155879,4.2558,2524.7,2524.2,0.39661]
[1730070155880,0.39657,2524.5,2524.2,0.39661]
[1730070156074,0.39656,2524.6,2524.2,0.39661]
[1730070156272,0.39651,2524.9,2524.5,5.68979381]
[1730070156477,0.39649,2525.1,2524.7,2.87852381]
[1730070156674,4.6924,2525.4,2524.7,2.48199381]
[1730070157374,0.39648,2525.1,2524.7,2.87852381]
[1730070157571,1.048,2525.3,2524.7,2.48199381]
[1730070157976,0.39651,2525.0,2524.7,2.48199381]
[1730070158183,4.6924,2525.4,2524.7,2.48199381]
[1730070158479,0.39646,2525.2,2524.9,2.48199381]
[1730070158877,1.048,2525.3,2524.9,2.48199381]
[1730070159272,0.39647,2525.2,2524.9,2.48199381]
[1730070159472,1.048,2525.3,2524.9,2.48199381]
[1730070159675,0.39649,2525.1,2524.9,2.48199381]
[1730070160277,3.6444,2525.4,2524.9,2.48199381]
[1730070160278,0.4366,2525.4,2524.9,2.48199381]
[1730070160473,0.39645,2525.3,2524.9,2.90379381]
[1730070160874,3.2078,2525.4,2524.9,2.90379381]
[1730070161179,0.39645,2525.3,2524.9,2.90379381]
[1730070161380,3.2078,2525.4,2524.9,2.90379381]
[1730070161580,0.39646,2525.2,2524.9,2.90379381]
[1730070161881,0.39649,2525.0,2524.9,0.4218]
[1730070162181,0.39652,2524.9,2524.5,5.68979381]
[1730070162986,0.39652,2524.9,2524.7,2.48199381]
[1730070163683,3.2078,2525.2,2524.7,2.48199381]
[1730070163984,0.39652,2524.8,2524.7,2.48199381]
[1730070164388,3.2078,2525.2,2524.7,2.48199381]
[1730070164583,0.99119,2525.1,2524.5,5.68979381]
[1730070164785,0.99119,2525.1,2524.4,0.4218]
[1730070164786,3.2078,2524.8,2524.4,0.4218]
[1730070164983,0.39657,2524.5,2524.4,0.4218]
[1730070166586,1.047,2525.0,2524.4,0.81837]
[1730070166788,0.39652,2524.8,2524.7,2.48199381]
[1730070167490,1.047,2525.0,2524.5,2.48199381]
[1730070167491,0.39655,2524.7,2524.5,2.48199381]
[1730070167795,0.39651,2524.9,2524.6,0.39654]
[1730070167990,5.24589,2525.4,2524.7,5.68979381]
[1730070168189,0.39652,2524.9,2524.7,5.68979381]
[1730070168386,0.99114,2525.3,2524.7,6.08632381]
[1730070169088,0.39652,2524.8,2524.7,5.68979381]
[1730070169482,3.9608,2524.8,2524.4,3.6296]
[1730070169687,0.39657,2524.5,2524.4,3.6296]
[1730070170091,0.99131,2524.9,2524.4,3.6296]
[1730070170287,0.39657,2524.5,2524.4,3.6296]
[1730070170687,0.99128,2524.8,2524.4,3.6296]
[1730070170886,0.39657,2524.5,2524.4,3.6296]
[1730070171690,0.99131,2524.9,2524.4,3.6296]
[1730070171691,0.39651,2524.9,2524.8,2.48199381]
[1730070171886,0.39655,2524.7,2524.6,2.48199381]
[1730070172081,0.39655,2524.7,2524.6,2.87854381]
[1730070172585,0.39654,2524.7,2524.6,2.48199381]
[1730070172788,0.39657,2524.5,2524.4,6.11159381]
[1730070173286,0.39657,2524.5,2524.4,6.50817381]
[1730070173695,0.39657,2524.5,2524.4,6.11159381]
[1730070174181,0.39657,2524.5,2524.4,6.50817381]
[1730070174988,0.39657,2524.5,2524.4,3.30037381]
[1730070175194,0.39657,2524.5,2524.4,6.50817381]
[1730070175594,0.39657,2524.5,2524.4,6.11159381]
[1730070176097,0.39657,2524.5,2524.4,6.50817381]
[1730070177891,0.39656,2524.6,2524.5,0.39655]
[1730070180890,0.39657,2524.5,2524.4,3.30036381]
[1730070181394,0.39657,2524.5,2524.4,0.4218]
[1730070185990,0.39662,2524.2,2524.1,4.24601539]
[1730070186190,0.99152,2524.3,2523.9,1.03821539]
[1730070186489,0.39665,2524.0,2523.9,0.39665]
[1730070186891,0.39666,2523.9,2523.8,4.3389792]
[1730070187093,0.39665,2524.0,2523.9,0.39665]
[1730070187292,0.39666,2523.9,2523.8,3.30077381]
[1730070192308,0.39673,2523.5,2523.3,1.03821539]
[1730070192600,0.39676,2523.3,2523.2,0.4437]
[1730070193404,0.39676,2523.3,2522.8,3.6429]
[1730070193405,0.39682,2523.0,2522.9,0.39681]
[1730070193795,0.39682,2522.9,2522.8,3.31391381]
[1730070194199,0.39684,2522.8,2522.7,4.0872]
[1730070194602,3.6332,2523.3,2522.7,7.32539381]
[1730070194803,0.39678,2523.2,2523.1,0.39679]
[1730070195003,3.2078,2523.3,2522.7,3.36139381]
[1730070195201,0.39678,2523.2,2523.1,0.39678]
[1730070195512,0.39681,2523.0,2522.7,6.56919381]
[1730070195805,1.15,2523.5,2522.7,6.56919381]
[1730070196002,0.39683,2522.9,2522.8,0.39683]
[1730070196408,0.39684,2522.8,2522.7,4.48404]
[1730070197000,0.39683,2522.9,2522.8,0.39681]
[1730070197695,0.99199,2523.1,2522.7,4.0872]
[1730070197895,0.39684,2522.8,2522.7,4.48404]
[1730070198402,0.39684,2522.8,2522.7,4.0872]
[1730070198902,0.39684,2522.8,2522.7,3.6511]
[1730070199100,3.964,2522.8,2522.4,3.6311]
[1730070199304,0.39688,2522.5,2522.4,4.47518]
[1730070199499,0.39688,2522.5,2522.4,1.26738]
[1730070200003,0.39688,2522.5,2522.4,0.8705]
[1730070200204,0.39688,2522.5,2522.4,1.2674]
[1730070200402,0.39688,2522.5,2522.4,0.8705]
[1730070200903,0.39685,2522.8,2522.4,0.8705]
[1730070201105,0.39685,2522.8,2522.7,0.39684]
[1730070201298,0.39685,2522.8,2522.5,2.48199381]
[1730070201299,0.39683,2522.9,2522.8,0.39682]
[1730070201706,0.39684,2522.8,2522.7,0.39684]
[1730070201900,0.39684,2522.8,2522.5,2.48199381]
[1730070202101,0.39683,2522.9,2522.8,0.39682]
[1730070202698,0.39684,2522.8,2522.7,0.39685]
[1730070203003,3.2078,2523.0,2522.4,4.0783]
[1730070203302,0.39685,2522.7,2522.6,0.39685]
[1730070204105,0.39685,2522.7,2522.5,0.39687]
[1730070204305,0.39685,2522.7,2522.6,0.39687]
[1730070204912,0.39685,2522.7,2522.4,4.0783]
[1730070205095,0.39685,2522.7,2522.6,0.39687]
[1730070205499,4.3588,2523.0,2522.4,4.0783]
[1730070205911,0.39688,2522.5,2522.4,4.0783]
[1730070206210,4.19994,2522.7,2522.0,2.48199381]